fUST/lending_fUST_20250313
["ID","MTS","AMOUNT","RATE_DAILY","PERIOD"]
[356027287,1741805445610,-722.89,0.00022191,2]
[356027288,1741805445620,-2912.84,0.00022191,2]
[356027289,1741805445629,-500.0,0.00022191,2]
[356027290,1741805445639,-767.51,0.00022191,2]
[356027291,1741805445649,-500.0,0.00022191,2]
[356027292,1741805445659,-515.69296982,0.00022191,2]
[356027293,1741805445670,-500.0,0.00022191,2]
[356027294,1741805445680,-3132.76,0.00022191,2]
[356027295,1741805445689,-500.0,0.00022191,2]
[356027296,1741805445702,-154.22724065,0.00022191,2]
[356027297,1741805445712,-6457.41,0.00022191,2]
[356027298,1741805445723,-870.62,0.00022191,2]
[356027300,1741805445733,-541.50779989,0.00022191,2]
[356027301,1741805445742,-1113.36,0.00022191,2]
[356027302,1741805445752,-1342.17,0.00022191,2]
[356027303,1741805445761,-500.0,0.00022191,2]
[356027304,1741805445771,-500.0,0.00022191,2]
[356027305,1741805445781,-500.0,0.00022191,2]
[356027306,1741805445791,-500.0,0.00022191,2]
[356027307,1741805445801,-2914.02,0.00022191,2]
[356027308,1741805445811,-1056.01,0.00022191,2]
[356027309,1741805445821,-1991.41,0.00022191,2]
[356027310,1741805445830,-500.0,0.00022191,2]
[356027312,1741805445840,-46867.91,0.00022191,2]
[356027313,1741805445850,-2013.44,0.00022191,2]
[356027314,1741805445859,-500.0,0.00022191,2]
[356027315,1741805445869,-658.3,0.00022191,2]
[356027316,1741805445879,-500.0,0.00022191,2]
[356027317,1741805445888,-441.35416636,0.00022191,2]
[356027318,1741805445898,-500.0,0.00022191,2]
[356027319,1741805445908,-1916.78,0.00022191,2]
[356027320,1741805445917,-791.33,0.00022191,2]
[356027321,1741805445931,-500.0,0.00022191,2]
[356027323,1741805445943,-936.32,0.00022191,2]
[356027325,1741805445953,-500.0,0.00022191,2]
[356027326,1741805445962,-2158.44,0.00022191,2]
[356027327,1741805445973,-500.0,0.00022191,2]
[356027328,1741805445982,-500.0,0.00022191,2]
[356027329,1741805445992,-500.0,0.00022191,2]
[356027330,1741805446001,-954.38,0.00022191,2]
[356027331,1741805446011,-500.0,0.00022191,2]
[356027332,1741805446021,-647.79,0.00022191,2]
[356027333,1741805446032,-5518.61,0.00022191,2]
[356027334,1741805446041,-500.0,0.00022191,2]
[356027335,1741805446050,-500.0,0.00022191,2]
[356027337,1741805446060,-703.5,0.00022191,2]
[356027338,1741805446069,-15224.72,0.00022191,2]
[356027339,1741805446078,-500.0,0.00022191,2]
[356027340,1741805446088,-500.0,0.00022191,2]
[356027341,1741805446097,-500.0,0.00022191,2]
[356027342,1741805446107,-500.0,0.00022191,2]
[356027343,1741805446117,-1887.09,0.00022191,2]
[356027345,1741805446126,-647.60390898,0.00022191,2]
[356027347,1741805446135,-3477.8,0.00022191,2]
[356027348,1741805446145,-500.0,0.00022191,2]
[356027349,1741805446154,-561.54,0.00022191,2]
[356027350,1741805446163,-4307.77,0.00022191,2]
[356027351,1741805446172,-6753.92,0.00022191,2]
[356027353,1741805446181,-1095.21,0.00022191,2]
[356027354,1741805446191,-565.24,0.00022191,2]
[356027355,1741805446202,-500.0,0.00022191,2]
[356027356,1741805446211,-500.0,0.00022191,2]
[356027357,1741805446220,-2499.93,0.00022191,2]
[356027358,1741805446229,-3351.93,0.00022191,2]
[356027359,1741805446239,-1063.76,0.00022191,2]
[356027360,1741805446248,-737.15,0.00022191,2]
[356027361,1741805446257,-250.61500891,0.00022191,2]
[356027362,1741805446267,-500.0,0.00022191,2]
[356027363,1741805446276,-500.0,0.00022191,2]
[356027364,1741805446285,-1000.0,0.00022191,7]
[356027365,1741805446295,-590.05,0.00022191,2]
[356027366,1741805446304,-1525.0,0.00022191,2]
[356027367,1741805446313,-4789.42,0.00022191,2]
[356027368,1741805446323,-909.55,0.00022191,2]
[356027369,1741805446332,-500.0,0.00022191,2]
[356027370,1741805446342,-2774.51,0.00022191,2]
[356027371,1741805446351,-788.63,0.00022191,2]
[356027372,1741805446360,-500.0,0.00022191,2]
[356027373,1741805446369,-500.0,0.00022191,2]
[356027374,1741805446378,-1295.46,0.00022191,2]
[356027375,1741805446387,-736.94,0.00022191,2]
[356027376,1741805446396,-500.0,0.00022191,2]
[356027377,1741805446406,-500.0,0.00022191,2]
[356027378,1741805446416,-500.0,0.00022191,2]
[356027379,1741805446426,-4584.67,0.00022191,2]
[356027380,1741805446436,-500.0,0.00022191,2]
[356027381,1741805446448,-500.0,0.00022191,2]
[356027382,1741805446457,-4227.44,0.00022191,2]
[356027383,1741805446467,-500.0,0.00022191,2]
[356027384,1741805446476,-500.0,0.00022191,2]
[356027385,1741805446485,-500.0,0.00022191,2]
[356027386,1741805446495,-558.57,0.00022191,2]
[356027387,1741805446504,-500.0,0.00022191,2]
[356027388,1741805446513,-500.0,0.00022191,2]
[356027389,1741805446522,-518.85,0.00022191,2]
[356027390,1741805446531,-732.91,0.00022191,2]
[356027391,1741805446540,-611.25,0.00022191,2]
[356027392,1741805446549,-804.02,0.00022191,2]
[356027393,1741805446558,-6490.34,0.00022191,2]
[356027394,1741805446567,-500.0,0.00022191,2]
[356027395,1741805446576,-5196.21,0.00022191,2]
[356027396,1741805446585,-500.0,0.00022191,2]
[356027397,1741805446594,-174.09255559,0.00022365,2]
[356027398,1741805446603,-300.0,0.000224,10]
[356027399,1741805446612,-160.0,0.00022406,2]
[356027400,1741805446621,-416.66666667,0.00022406,2]
[356027401,1741805446630,-160.0,0.00022406,2]
[356027402,1741805446639,-15577.25547611,0.00022406,2]
[356027403,1741805446649,-200.0,0.00022451,2]
[356027404,1741805446658,-350.599,0.00022458,2]
[356027405,1741805446667,-290.8504628,0.0002246,2]
[356027406,1741805446677,-500.0,0.00022465,2]
[356027407,1741805446686,-500.0,0.00022465,2]
[356027408,1741805446697,-500.0,0.00022465,5]
[356027409,1741805446706,-500.0,0.00022465,2]
[356027410,1741805446716,-925.81,0.00022465,2]
[356027411,1741805446727,-626.42,0.00022465,2]
[356027412,1741805446738,-500.0,0.00022465,2]
[356027413,1741805446747,-500.0,0.00022465,2]
[356027414,1741805446756,-500.0,0.00022465,2]
[356027415,1741805446765,-500.0,0.00022465,2]
[356027416,1741805446775,-500.0,0.00022465,2]
[356027417,1741805446785,-501.95069092,0.00022465,2]
[356027418,1741805446794,-530.44825027,0.00022465,2]
[356027419,1741805446804,-500.0,0.00022465,2]
[356027420,1741805446813,-555.1822697,0.00022465,2]
[356027421,1741805446823,-500.0,0.00022465,2]
[356027422,1741805446833,-500.0,0.00022465,2]
[356027423,1741805446842,-520.20126565,0.00022465,2]
[356027424,1741805446852,-500.0,0.00022465,2]
[356027425,1741805446861,-500.0,0.00022465,2]
[356027426,1741805446871,-500.0,0.00022465,2]
[356027427,1741805446880,-500.0,0.00022465,2]
[356027428,1741805446890,-500.0,0.00022465,2]
[356027429,1741805446899,-784.14,0.00022465,2]
[356027430,1741805446909,-500.0,0.00022465,2]
[356027431,1741805446918,-500.0,0.00022465,2]
[356027432,1741805446928,-500.0,0.00022465,2]
[356027433,1741805446942,-789.18,0.00022465,2]
[356027434,1741805446953,-500.0,0.00022465,2]
[356027435,1741805446963,-500.0,0.00022465,2]
[356027436,1741805446973,-500.0,0.00022465,2]
[356027437,1741805446982,-731.1,0.00022465,2]
[356027438,1741805446991,-739.59,0.00022465,2]
[356027439,1741805447001,-1125.06,0.00022465,2]
[356027440,1741805447012,-500.0,0.00022465,2]
[356027441,1741805447023,-500.0,0.00022465,2]
[356027442,1741805447032,-500.0,0.00022465,2]
[356027443,1741805447041,-500.0,0.00022465,2]
[356027444,1741805447051,-500.0,0.00022465,2]
[356027445,1741805447060,-500.0,0.00022465,2]
[356027446,1741805447070,-500.0,0.00022465,2]
[356027447,1741805447080,-500.0,0.00022465,2]
[356027448,1741805447090,-500.0,0.00022465,2]
[356027449,1741805447099,-1367.7,0.00022465,2]
[356027450,1741805447108,-500.0,0.00022465,2]
[356027451,1741805447118,-754.68,0.00022465,2]
[356027452,1741805447127,-609.85174507,0.00022465,2]
[356027453,1741805447136,-500.0,0.00022465,2]
[356027454,1741805447146,-500.0,0.00022465,2]
[356027455,1741805447156,-500.0,0.00022465,2]
[356027456,1741805447165,-500.0,0.00022465,2]
[356027457,1741805447175,-500.0,0.00022465,2]
[356027458,1741805447184,-500.0,0.00022465,2]
[356027459,1741805447195,-500.0,0.00022465,2]
[356027460,1741805447204,-1587.03,0.00022465,2]
[356027461,1741805447213,-500.0,0.00022465,2]
[356027462,1741805447222,-500.0,0.00022465,2]
[356027463,1741805447231,-921.95,0.00022465,2]
[356027464,1741805447240,-500.0,0.00022465,2]
[356027465,1741805447249,-648.0577932,0.00022465,2]
[356027466,1741805447654,-413.076,0.00021917,2]
[356027470,1741806271479,300.0,0.000179,7]
[356027508,1741806632400,-300.0,0.000194,8]
[356027509,1741806632410,-2900.4868532,0.00020285,2]
[356027510,1741806632419,-300.0,0.000209,9]
[356027511,1741806632428,-150.0,0.00021,2]
[356027512,1741806632438,-871.868049,0.00021,2]
[356027513,1741806632447,-300.0,0.00021816,2]
[356027514,1741806632456,-3648.00786228,0.00021817,2]
[356027515,1741806632465,-600.0,0.00021904,2]
[356027516,1741806632475,-201.73476489,0.00021916,2]
[356027517,1741806632485,-224.15365211,0.00021916,2]
[356027518,1741806632495,-500.0,0.00021917,2]
[356027519,1741806632504,-500.0,0.00021917,2]
[356027520,1741806632513,-500.0,0.00021917,2]
[356027521,1741806632523,-500.0,0.00021917,2]
[356027522,1741806632532,-500.0,0.00021917,2]
[356027523,1741806632541,-500.0,0.00021917,2]
[356027524,1741806632552,-500.0,0.00021917,2]
[356027525,1741806632562,-500.0,0.00021917,2]
[356027526,1741806632571,-500.0,0.00021917,2]
[356027527,1741806632580,-500.0,0.00021917,2]
[356027528,1741806632589,-500.0,0.00021917,2]
[356027529,1741806632598,-500.0,0.00021917,2]
[356027530,1741806632607,-500.0,0.00021917,2]
[356027531,1741806632616,-500.0,0.00021917,2]
[356027532,1741806632625,-500.0,0.00021917,2]
[356027533,1741806632635,-500.0,0.00021917,2]
[356027534,1741806632644,-500.0,0.00021917,2]
[356027535,1741806632653,-500.0,0.00021917,2]
[356027536,1741806632663,-500.0,0.00021917,2]
[356027537,1741806632671,-500.0,0.00021917,2]
[356027538,1741806632680,-500.0,0.00021917,2]
[356027539,1741806632690,-500.0,0.00021917,2]
[356027540,1741806632699,-500.0,0.00021917,2]
[356027541,1741806632708,-500.0,0.00021917,2]
[356027542,1741806632717,-522.28,0.00021917,2]
[356027543,1741806632726,-500.0,0.00021917,2]
[356027544,1741806632735,-500.0,0.00021917,2]
[356027545,1741806632744,-317.80668087,0.00021917,2]
[356027546,1741806632753,-500.0,0.00021917,2]
[356027547,1741806632761,-500.0,0.00021917,2]
[356027548,1741806632771,-500.0,0.00021917,2]
[356027549,1741806632780,-500.0,0.00021917,2]
[356027550,1741806632799,-500.0,0.00021917,2]
[356027551,1741806632812,-500.0,0.00021917,2]
[356027552,1741806632821,-500.0,0.00021917,2]
[356027553,1741806632831,-500.0,0.00021917,2]
[356027554,1741806632840,-805.92,0.00021917,2]
[356027555,1741806632849,-500.0,0.00021917,2]
[356027556,1741806632859,-500.0,0.00021917,2]
[356027557,1741806632868,-500.0,0.00021917,2]
[356027558,1741806632878,-1775.34,0.00021917,2]
[356027559,1741806632887,-500.0,0.00021917,2]
[356027560,1741806632897,-500.0,0.00021917,2]
[356027561,1741806632906,-500.0,0.00021917,2]
[356027562,1741806632916,-500.0,0.00021917,2]
[356027563,1741806632925,-500.0,0.00021917,2]
[356027564,1741806632934,-500.0,0.00021917,2]
[356027565,1741806632944,-500.0,0.00021917,2]
[356027566,1741806632954,-500.0,0.00021917,2]
[356027567,1741806632963,-500.0,0.00021917,2]
[356027568,1741806632972,-587.93,0.00021917,2]
[356027569,1741806632982,-500.0,0.00021917,2]
[356027570,1741806632993,-500.0,0.00021917,2]
[356027571,1741806633002,-500.0,0.00021917,2]
[356027572,1741806633013,-500.0,0.00021917,2]
[356027573,1741806633022,-500.0,0.00021917,2]
[356027574,1741806633032,-417.36339775,0.00021917,2]
[356027575,1741806633042,-500.0,0.00021917,2]
[356027576,1741806633051,-500.0,0.00021917,2]
[356027577,1741806633062,-500.0,0.00021917,2]
[356027578,1741806633071,-500.0,0.00021917,2]
[356027579,1741806633082,-500.0,0.00021917,2]
[356027580,1741806633092,-500.0,0.00021917,2]
[356027581,1741806633102,-500.0,0.00021917,2]
[356027582,1741806633112,-773.25,0.00021917,2]
[356027583,1741806633122,-500.0,0.00021917,2]
[356027584,1741806633132,-778.22,0.00021917,2]
[356027585,1741806633142,-500.0,0.00021917,2]
[356027586,1741806633152,-1109.43,0.00021917,2]
[356027587,1741806633162,-556.77,0.00021917,2]
[356027588,1741806633173,-720.95,0.00021917,2]
[356027589,1741806633182,-500.0,0.00021917,2]
[356027590,1741806633192,-500.0,0.00021917,2]
[356027591,1741806633202,-500.0,0.00021917,2]
[356027592,1741806633212,-500.0,0.00021917,2]
[356027593,1741806633221,-686.07,0.00021917,2]
[356027594,1741806633231,-500.0,0.00021917,2]
[356027595,1741806633240,-635.14421015,0.00021917,2]
[356027596,1741806633250,-500.0,0.00021917,2]
[356027597,1741806633259,-500.0,0.00021917,2]
[356027598,1741806633269,-500.0,0.00021917,2]
[356027599,1741806633278,-500.0,0.00021917,2]
[356027600,1741806633287,-500.0,0.00021917,2]
[356027601,1741806633297,-500.0,0.00021917,2]
[356027602,1741806633310,-500.0,0.00021917,2]
[356027603,1741806633319,-500.0,0.00021917,2]
[356027604,1741806633329,-1424.68,0.00021917,2]
[356027605,1741806633338,-500.0,0.00021917,2]
[356027606,1741806633349,-500.0,0.00021917,2]
[356027607,1741806633358,-739.78,0.00021917,2]
[356027608,1741806633368,-394.84998173,0.00021917,2]
[356027609,1741806633378,-500.0,0.00021917,2]
[356027610,1741806633388,-500.0,0.00021917,2]
[356027611,1741806633397,-500.0,0.00021917,2]
[356027612,1741806633407,-500.0,0.00021917,2]
[356027613,1741806633422,-500.0,0.00021917,2]
[356027614,1741806633432,-500.0,0.00021917,2]
[356027615,1741806633442,-500.0,0.00021917,2]
[356027616,1741806633451,-500.0,0.00021917,2]
[356027617,1741806633461,-500.0,0.00021917,2]
[356027618,1741806633471,-513.70180223,0.00021917,2]
[356027619,1741806633481,-500.0,0.00021917,2]
[356027620,1741806633490,-500.0,0.00021917,2]
[356027621,1741806633500,-607.18,0.00021917,2]
[356027622,1741806633510,-1545.26,0.00021917,2]
[356027623,1741806633520,-500.0,0.00021917,2]
[356027624,1741806633529,-500.0,0.00021917,2]
[356027625,1741806633539,-500.0,0.00021917,2]
[356027626,1741806633549,-500.0,0.00021917,2]
[356027627,1741806633559,-500.0,0.00021917,2]
[356027628,1741806633569,-951.94,0.00021917,2]
[356027629,1741806633579,-500.0,0.00021917,2]
[356027630,1741806633589,-1434.82,0.00021917,2]
[356027631,1741806633598,-500.0,0.00021917,2]
[356027632,1741806633608,-873.11,0.00021917,2]
[356027633,1741806633617,-500.0,0.00021917,2]
[356027634,1741806633627,-508.1,0.00021917,2]
[356027635,1741806633637,-500.0,0.00021917,2]
[356027636,1741806633646,-200.0,0.00021917,2]
[356027637,1741806633657,-1616.19,0.00021917,2]
[356027638,1741806633666,-500.0,0.00021917,2]
[356027639,1741806633677,-500.0,0.00021917,2]
[356027640,1741806633687,-512.83057655,0.00021917,2]
[356027641,1741806633697,-500.0,0.00021917,2]
[356027642,1741806633707,-500.0,0.00021917,2]
[356027643,1741806633716,-2626.31,0.00021917,2]
[356027644,1741806633726,-500.0,0.00021917,2]
[356027645,1741806633736,-500.0,0.00021917,2]
[356027646,1741806633746,-500.0,0.00021917,2]
[356027647,1741806633755,-500.0,0.00021917,2]
[356027648,1741806633765,-503.63777399,0.00021917,2]
[356027649,1741806633775,-500.0,0.00021917,2]
[356027650,1741806633785,-500.0,0.00021917,2]
[356027651,1741806633794,-567.63,0.00021917,2]
[356027652,1741806633804,-500.0,0.00021917,2]
[356027653,1741806633814,-817.05,0.00021917,2]
[356027654,1741806633824,-500.0,0.00021917,2]
[356027655,1741806633834,-413.69860278,0.00021917,2]
[356027656,1741806633844,-911.71,0.00021917,2]
[356027657,1741806633853,-500.0,0.00021917,2]
[356027658,1741806633863,-500.0,0.00021917,2]
[356027659,1741806633873,-500.0,0.00021917,2]
[356027660,1741806633884,-500.0,0.00021917,2]
[356027661,1741806633894,-500.0,0.00021917,2]
[356027662,1741806633904,-500.0,0.00021917,2]
[356027663,1741806633913,-706.16,0.00021917,2]
[356027664,1741806633923,-500.0,0.00021917,2]
[356027665,1741806633932,-500.0,0.00021917,2]
[356027666,1741806633942,-500.0,0.00021917,2]
[356027667,1741806633952,-500.0,0.00021917,2]
[356027668,1741806633963,-1115.91,0.00021917,2]
[356027669,1741806633973,-604.9,0.00021917,2]
[356027670,1741806633983,-843.78,0.00021917,2]
[356027671,1741806633993,-511.9,0.00021917,2]
[356027672,1741806634003,-500.0,0.00021917,2]
[356027673,1741806634013,-1490.23,0.00021917,2]
[356027674,1741806634025,-4742.69,0.00021917,2]
[356027675,1741806634035,-500.0,0.00021917,2]
[356027676,1741806634045,-658.81,0.00021917,2]
[356027677,1741806634056,-500.0,0.00021917,2]
[356027678,1741806634066,-500.0,0.00021917,2]
[356027679,1741806634076,-791.89,0.00021917,2]
[356027680,1741806634086,-4763.2,0.00021917,2]
[356027681,1741806634095,-500.0,0.00021917,2]
[356027682,1741806634105,-4458.4,0.00021917,2]
[356027683,1741806634116,-222.53599685,0.00021917,2]
[356027684,1741806634126,-4642.18,0.00021917,2]
[356027685,1741806634135,-6858.36,0.00021917,2]
[356027686,1741806634146,-575.6037553,0.00021917,2]
[356027687,1741806634155,-500.0,0.00021917,2]
[356027688,1741806634165,-500.0,0.00021917,2]
[356027689,1741806634175,-500.0,0.00021917,2]
[356027690,1741806634186,-500.0,0.00021917,2]
[356027691,1741806634196,-500.0,0.00021917,2]
[356027692,1741806634206,-885.04,0.00021917,2]
[356027693,1741806634216,-4055.89,0.00021917,2]
[356027694,1741806634226,-500.0,0.00021917,2]
[356027695,1741806634236,-500.0,0.00021917,2]
[356027696,1741806634246,-656.82,0.00021917,2]
[356027697,1741806634256,-500.0,0.00021917,2]
[356027698,1741806634266,-545.37,0.00021917,2]
[356027699,1741806634276,-500.0,0.00021917,2]
[356027700,1741806634286,-787.56,0.00021917,2]
[356027701,1741806634296,-500.0,0.00021917,2]
[356027702,1741806634309,-500.0,0.00021917,2]
[356027703,1741806634319,-909.55,0.00021917,2]
[356027704,1741806634329,-500.0,0.00021917,2]
[356027705,1741806634338,-500.0,0.00021917,2]
[356027706,1741806634349,-500.0,0.00021917,2]
[356027707,1741806634359,-500.0,0.00021917,2]
[356027708,1741806634369,-500.0,0.00021917,2]
[356027709,1741806634379,-500.0,0.00021917,2]
[356027710,1741806634390,-500.0,0.00021917,2]
[356027711,1741806634400,-500.0,0.00021917,2]
[356027712,1741806634410,-500.0,0.00021917,2]
[356027713,1741806634419,-3324.21,0.00021917,2]
[356027714,1741806634429,-500.0,0.00021917,2]
[356027715,1741806634439,-500.0,0.00021917,2]
[356027716,1741806634449,-500.0,0.00021917,2]
[356027717,1741806634459,-500.0,0.00021917,2]
[356027718,1741806634468,-500.0,0.00021917,2]
[356027719,1741806634478,-4836.29,0.00021917,2]
[356027720,1741806634487,-2750.3,0.00021917,2]
[356027721,1741806634497,-500.0,0.00021917,2]
[356027722,1741806634507,-1503.35,0.00021917,2]
[356027723,1741806634517,-803.0,0.00021917,2]
[356027724,1741806634527,-500.0,0.00021917,2]
[356027725,1741806634536,-500.0,0.00021917,2]
[356027726,1741806634546,-626.32,0.00021917,2]
[356027727,1741806634555,-784.34,0.00021917,2]
[356027728,1741806634565,-500.0,0.00021917,2]
[356027729,1741806634576,-1527.59,0.00021917,2]
[356027730,1741806634586,-500.0,0.00021917,2]
[356027731,1741806634596,-500.0,0.00021917,2]
[356027732,1741806634606,-699.95,0.00021917,2]
[356027733,1741806634616,-500.0,0.00021917,2]
[356027734,1741806634625,-500.0,0.00021917,5]
[356027735,1741806634635,-503.94,0.00021917,2]
[356027736,1741806634645,-2768.61,0.00021917,2]
[356027737,1741806634654,-1714.8,0.00021917,2]
[356027738,1741806634664,-3002.94,0.00021917,2]
[356027739,1741806634673,-500.0,0.00021917,2]
[356027740,1741806634684,-513.81,0.00021917,2]
[356027741,1741806634694,-551.63,0.00021917,2]
[356027742,1741806634703,-500.0,0.00021917,2]
[356027743,1741806634713,-500.0,0.00021917,2]
[356027744,1741806634723,-646.8,0.00021917,2]
[356027745,1741806634732,-2017.18,0.00021917,2]
[356027746,1741806634742,-500.0,0.00021917,2]
[356027747,1741806634751,-500.0,0.00021917,2]
[356027748,1741806634760,-500.0,0.00021917,2]
[356027749,1741806634770,-500.0,0.00021917,2]
[356027750,1741806634780,-2788.12,0.00021917,2]
[356027751,1741806634789,-500.0,0.00021917,2]
[356027752,1741806634799,-500.0,0.00021917,2]
[356027753,1741806634808,-32732.25744032,0.00021917,2]
[356027794,1741806638273,-13756.84255968,0.00021917,2]
[356027796,1741806638283,-500.0,0.00021917,2]
[356027798,1741806638292,-500.0,0.00021917,2]
[356027800,1741806638304,-500.0,0.00021917,2]
[356027802,1741806638314,-500.0,0.00021917,2]
[356027804,1741806638323,-742.97,0.00021917,2]
[356027806,1741806638333,-500.0,0.00021917,2]
[356027808,1741806638343,-1951.71,0.00021917,2]
[356027811,1741806638352,-955.93,0.00021917,2]
[356027813,1741806638361,-15294.13,0.00021917,2]
[356027815,1741806638371,-889.72,0.00021917,2]
[356027817,1741806638383,-500.0,0.00021917,2]
[356027819,1741806638392,-500.0,0.00021917,2]
[356027821,1741806638401,-1286.47,0.00021917,2]
[356027823,1741806638411,-1025.54,0.00021917,2]
[356027825,1741806638421,-500.0,0.00021917,2]
[356027827,1741806638430,-6306.42,0.00021917,2]
[356027829,1741806638439,-2105.03,0.00021917,2]
[356027831,1741806638448,-1131.92,0.00021917,2]
[356027833,1741806638458,-500.0,0.00021917,2]
[356027835,1741806638467,-1085.35,0.00021917,2]
[356027837,1741806638477,-500.0,0.00021917,2]
[356027839,1741806638486,-500.0,0.00021917,2]
[356027841,1741806638495,-500.0,0.00021917,2]
[356027843,1741806638505,-500.0,0.00021917,2]
[356027845,1741806638514,-5460.01,0.00021917,2]
[356027847,1741806638524,-500.0,0.00021917,2]
[356027849,1741806638533,-1949.22,0.00021917,2]
[356027851,1741806638542,-500.0,0.00021917,2]
[356027853,1741806638552,-500.0,0.00021917,2]
[356027855,1741806638561,-500.0,0.00021917,2]
[356027857,1741806638571,-335.04563205,0.00021917,2]
[356027860,1741806638581,-415.73913894,0.00021917,2]
[356027862,1741806638590,-500.0,0.00021917,2]
[356027864,1741806638600,-500.0,0.00021917,2]
[356027866,1741806638610,-500.0,0.00021917,2]
[356027868,1741806638619,-500.0,0.00021917,2]
[356027870,1741806638629,-500.0,0.00021917,2]
[356027872,1741806638638,-1966.71,0.00021917,2]
[356027874,1741806638647,-500.0,0.00021917,2]
[356027876,1741806638658,-500.0,0.00021917,2]
[356027878,1741806638667,-500.0,0.00021917,2]
[356027880,1741806638676,-2432.04,0.00021917,2]
[356027882,1741806638686,-808.68,0.00021917,2]
[356027884,1741806638695,-672.73,0.00021917,2]
[356027886,1741806638705,-500.0,0.00021917,2]
[356027888,1741806638714,-4250.61,0.00021917,2]
[356027890,1741806638723,-500.0,0.00021917,2]
[356027892,1741806638732,-500.0,0.00021917,2]
[356027894,1741806638741,-500.0,0.00021917,2]
[356027896,1741806638750,-500.0,0.00021917,2]
[356027898,1741806638759,-500.0,0.00021917,2]
[356027900,1741806638769,-718.93,0.00021917,2]
[356027902,1741806638778,-500.0,0.00021917,2]
[356027904,1741806638787,-3357.1,0.00021917,2]
[356027906,1741806638796,-500.0,0.00021917,2]
[356027908,1741806638806,-1000.0,0.00021917,7]
[356027910,1741806638816,-956.86,0.00021917,2]
[356027912,1741806638825,-500.0,0.00021917,2]
[356027914,1741806638834,-929.5,0.00021917,2]
[356027916,1741806638844,-661.99,0.00021917,2]
[356027918,1741806638853,-6423.14,0.00021917,2]
[356027920,1741806638863,-573.85,0.00021917,2]
[356027922,1741806638873,-500.0,0.00021917,2]
[356027925,1741806638882,-3230.35,0.00021917,2]
[356027927,1741806638892,-500.0,0.00021917,2]
[356027929,1741806638901,-500.0,0.00021917,2]
[356027931,1741806638910,-434.81598272,0.00021917,2]
[356027933,1741806638919,-1821.81,0.00021917,2]
[356027935,1741806638928,-500.0,0.00021917,2]
[356027937,1741806638938,-500.0,0.00021917,2]
[356027939,1741806638947,-500.0,0.00021917,2]
[356027941,1741806638957,-753.31,0.00021917,2]
[356027943,1741806638966,-500.0,0.00021917,2]
[356027945,1741806638975,-1119.23,0.00021917,2]
[356027947,1741806638986,-1516.17,0.00021917,2]
[356027949,1741806638995,-502.96139612,0.00021917,2]
[356027951,1741806639004,-161.58520475,0.00021917,2]
[356027953,1741806639014,-2788.57,0.00021917,2]
[356027955,1741806639023,-500.0,0.00021917,2]
[356027957,1741806639032,-557.54,0.00021917,2]